fUST/lending_fUST_20240918
["ID","MTS","AMOUNT","RATE_DAILY","PERIOD"]
[338422562,1726627857985,-180.090613,0.00019452,2]
[338422563,1726627857995,-500.0,0.00019452,2]
[338422564,1726627858006,-180.090613,0.00019452,2]
[338422565,1726627858018,-500.0,0.00019452,2]
[338422566,1726627858028,-500.0,0.00019452,2]
[338422567,1726627858038,-500.0,0.00019452,2]
[338422568,1726627858048,-180.090613,0.00019452,2]
[338422569,1726627858059,-531.88,0.00019452,2]
[338422570,1726627858070,-180.090613,0.00019452,2]
[338422571,1726627858081,-500.0,0.00019452,2]
[338422572,1726627858093,-500.72722278,0.00019452,2]
[338422573,1726627858103,-500.0,0.00019452,2]
[338422574,1726627858113,-500.0,0.00019452,2]
[338422575,1726627858124,-1003.19,0.00019452,2]
[338422576,1726627858134,-500.0,0.00019452,2]
[338422577,1726627858144,-500.0,0.00019452,2]
[338422578,1726627858153,-500.0,0.00019452,2]
[338422579,1726627858162,-500.0,0.00019452,2]
[338422580,1726627858171,-500.0,0.00019452,2]
[338422581,1726627858182,-500.37600801,0.00019452,2]
[338422582,1726627858192,-500.0,0.00019452,2]
[338422583,1726627858203,-919.55,0.00019452,2]
[338422584,1726627858212,-708.59,0.00019452,2]
[338422585,1726627858223,-500.0,0.00019452,2]
[338422586,1726627858232,-1363.09,0.00019452,2]
[338422587,1726627858241,-1820.27,0.00019452,2]
[338422588,1726627858250,-782.15,0.00019452,2]
[338422589,1726627858260,-370.79810788,0.00019452,2]
[338422590,1726627858269,-500.0,0.00019452,2]
[338422591,1726627858280,-500.0,0.00019452,2]
[338422592,1726627858289,-500.0,0.00019452,2]
[338422593,1726627858298,-500.0,0.00019452,2]
[338422594,1726627858307,-500.0,0.00019452,2]
[338422595,1726627858316,-1318.25,0.00019452,2]
[338422596,1726627858325,-777.79,0.00019452,2]
[338422597,1726627858334,-500.0,0.00019452,2]
[338422598,1726627858344,-500.0,0.00019452,2]
[338422599,1726627858354,-500.0,0.00019452,2]
[338422600,1726627858363,-500.0,0.00019452,2]
[338422601,1726627858372,-4321.59,0.00019452,2]
[338422602,1726627858381,-503.59193817,0.00019452,2]
[338422603,1726627858391,-1377.88,0.00019452,2]
[338422604,1726627858400,-1170.35,0.00019452,2]
[338422605,1726627858409,-500.0,0.00019452,2]
[338422606,1726627858418,-500.0,0.00019452,2]
[338422607,1726627858427,-500.0,0.00019452,2]
[338422608,1726627858436,-12411.55,0.00019452,2]
[338422609,1726627858445,-500.0,0.00019452,2]
[338422610,1726627858458,-500.0,0.00019452,2]
[338422611,1726627858467,-518.6,0.00019452,2]
[338422612,1726627858476,-500.0,0.00019452,2]
[338422613,1726627858486,-505.49503684,0.00019452,2]
[338422614,1726627858496,-500.0,0.00019452,2]
[338422615,1726627858506,-625.47,0.00019452,2]
[338422616,1726627858515,-500.0,0.00019452,2]
[338422617,1726627858525,-500.0,0.00019452,2]
[338422618,1726627858543,-568.68349003,0.00019452,2]
[338422619,1726627858553,-500.0,0.00019452,2]
[338422620,1726627858562,-213.87774882,0.00019452,2]
[338422621,1726627858572,-500.0,0.00019452,2]
[338422622,1726627858581,-1320.37,0.00019452,2]
[338422623,1726627858590,-500.0,0.00019452,2]
[338422624,1726627858599,-500.0,0.00019452,2]
[338422625,1726627858608,-500.0,0.00019452,2]
[338422626,1726627858617,-3721.54,0.00019452,2]
[338422627,1726627858627,-500.0,0.00019452,2]
[338422628,1726627858637,-500.0,0.00019452,2]
[338422629,1726627858646,-1020.47,0.00019452,2]
[338422630,1726627858656,-500.0,0.00019452,2]
[338422631,1726627858666,-500.0,0.00019452,2]
[338422632,1726627858676,-1499.52,0.00019452,2]
[338422633,1726627858686,-637.86,0.00019452,2]
[338422634,1726627858696,-179.72547602,0.00019452,2]
[338422635,1726627858706,-1088.76,0.00019452,2]
[338422636,1726627858715,-500.0,0.00019452,2]
[338422637,1726627858725,-501.14751267,0.00019452,2]
[338422638,1726627858736,-870.83,0.00019452,2]
[338422639,1726627858748,-2731.66,0.00019452,2]
[338422640,1726627858757,-500.0,0.00019452,2]
[338422641,1726627858768,-654.48,0.00019452,2]
[338422642,1726627858777,-500.0,0.00019452,2]
[338422643,1726627858787,-500.0,0.00019452,2]
[338422644,1726627858797,-1283.9557843,0.00019452,2]
[338422645,1726627859393,-500.0,0.00019178,2]
[338422646,1726627859404,-20.8642157,0.00019452,2]
[338422647,1726627859415,-497.76570392,0.00019452,2]
[338422648,1726627859426,-20984.16,0.00019452,2]
[338422649,1726627859438,-500.0,0.00019452,2]
[338422650,1726627859449,-500.0,0.00019452,2]
[338422651,1726627859463,-500.0,0.00019452,2]
[338422652,1726627859474,-2467.62,0.00019452,2]
[338422653,1726627859484,-500.0,0.00019452,2]
[338422654,1726627859496,-517.83907208,0.00019452,2]
[338422655,1726627859504,-557.96495598,0.00019452,2]
[338422656,1726627859822,-532.31977263,0.00019178,2]
[338422657,1726627859832,-501.04744739,0.00019178,2]
[338422658,1726627859842,-140.24504402,0.00019452,2]
[338422659,1726627859852,-885.2,0.00019452,2]
[338422660,1726627859863,-10161.24,0.00019452,2]
[338422661,1726627859874,-500.0,0.00019452,2]
[338422662,1726627859885,-992.39,0.00019452,2]
[338422663,1726627859894,-178.69640053,0.00019452,2]
[338422664,1726627859904,-1277.75,0.00019452,2]
[338422665,1726627859915,-1013.05,0.00019452,2]
[338422666,1726627859927,-500.0,0.00019452,2]
[338422667,1726627859938,-500.0,0.00019452,2]
[338422668,1726627859948,-500.0,0.00019452,2]
[338422669,1726627859957,-500.0,0.00019452,2]
[338422670,1726627859966,-471.44,0.00019452,2]
[338422671,1726627859978,-500.0,0.00019452,2]
[338422672,1726627859988,-552.28,0.00019452,2]
[338422673,1726627859998,-6050.51,0.00019452,2]
[338422674,1726627860008,-500.0,0.00019452,2]
[338422675,1726627860020,-1714.73,0.00019452,2]
[338422676,1726627860029,-500.0,0.00019452,2]
[338422677,1726627860039,-500.0,0.00019452,2]
[338422678,1726627860049,-682.67,0.00019452,2]
[338422679,1726627860059,-4671.53,0.00019452,2]
[338422680,1726627860069,-233.20838,0.00019452,2]
[338422681,1726627860079,-233.20838,0.00019452,2]
[338422682,1726627860089,-2074.91,0.00019452,2]
[338422683,1726627860098,-233.20838,0.00019452,2]
[338422684,1726627860107,-295.200798,0.00019452,2]
[338422685,1726627860118,-611.39,0.00019452,2]
[338422686,1726627860128,-233.20838,0.00019452,2]
[338422687,1726627860138,-608.74,0.00019452,2]
[338422688,1726627860149,-951.0,0.00019452,2]
[338422689,1726627860158,-295.200798,0.00019452,2]
[338422690,1726627860168,-500.0,0.00019452,2]
[338422691,1726627860178,-1681.1,0.00019452,2]
[338422692,1726627860188,-620.21,0.00019452,2]
[338422693,1726627860197,-295.200798,0.00019452,2]
[338422694,1726627860206,-295.200798,0.00019452,2]
[338422695,1726627860216,-435.16848339,0.00019452,2]
[338422696,1726627860225,-555.92,0.00019452,2]
[338422697,1726627860234,-500.0,0.00019452,2]
[338422698,1726627860244,-1115.85,0.00019452,2]
[338422699,1726627860253,-500.0,0.00019452,2]
[338422700,1726627860262,-1411.05,0.00019452,2]
[338422701,1726627860271,-843.53,0.00019452,2]
[338422702,1726627860282,-500.0,0.00019452,2]
[338422703,1726627860292,-831.56531,0.00019452,2]
[338422704,1726627860302,-500.0,0.00019452,2]
[338422705,1726627860311,-1095.75,0.00019452,2]
[338422706,1726627860320,-831.56531,0.00019452,2]
[338422707,1726627860329,-500.0,0.00019452,2]
[338422708,1726627860338,-581.78,0.00019452,2]
[338422709,1726627860347,-500.0,0.00019452,2]
[338422710,1726627860357,-500.0,0.00019452,2]
[338422711,1726627860367,-500.0,0.00019452,2]
[338422712,1726627860376,-730.12,0.00019452,2]
[338422713,1726627860386,-831.56531,0.00019452,2]
[338422714,1726627860396,-654.95,0.00019452,2]
[338422715,1726627860406,-831.56531,0.00019452,2]
[338422716,1726627860420,-2888.67,0.00019452,2]
[338422717,1726627860431,-1087.94,0.00019452,2]
[338422718,1726627860442,-503.27,0.00019452,2]
[338422719,1726627860451,-500.0,0.00019452,2]
[338422720,1726627860464,-500.0,0.00019452,2]
[338422721,1726627860475,-500.0,0.00019452,2]
[338422722,1726627860485,-847.92,0.00019452,2]
[338422723,1726627860495,-803.15,0.00019452,2]
[338422724,1726627860505,-500.0,0.00019452,2]
[338422725,1726627860517,-500.0,0.00019452,2]
[338422726,1726627860526,-500.0,0.00019452,2]
[338422727,1726627860539,-625.61,0.00019452,2]
[338422728,1726627860551,-500.0,0.00019452,2]
[338422729,1726627860563,-1204.79,0.00019452,2]
[338422730,1726627860573,-500.0,0.00019452,2]
[338422731,1726627860583,-500.0,0.00019452,2]
[338422732,1726627860594,-500.0,0.00019452,2]
[338422733,1726627860605,-500.0,0.00019452,2]
[338422734,1726627860617,-597.11,0.00019452,2]
[338422735,1726627860627,-500.0,0.00019452,2]
[338422736,1726627860639,-1648.71,0.00019452,2]
[338422737,1726627860650,-648.25,0.00019452,2]
[338422738,1726627860662,-780.29,0.00019452,2]
[338422739,1726627860672,-500.0,0.00019452,2]
[338422740,1726627860681,-500.0,0.00019452,2]
[338422741,1726627860692,-500.0,0.00019452,2]
[338422742,1726627860704,-500.0,0.00019452,2]
[338422743,1726627860714,-500.0,0.00019452,2]
[338422744,1726627860725,-500.0,0.00019452,2]
[338422745,1726627860735,-1606.92,0.00019452,2]
[338422746,1726627860746,-500.0,0.00019452,2]
[338422747,1726627860756,-500.0,0.00019452,2]
[338422748,1726627860767,-500.0,0.00019452,2]
[338422749,1726627860780,-500.0,0.00019452,2]
[338422750,1726627860790,-1941.79,0.00019452,2]
[338422751,1726627860800,-500.0,0.00019452,2]
[338422752,1726627860809,-1127.28,0.00019452,2]
[338422753,1726627860819,-1880.46,0.00019452,2]
[338422754,1726627860830,-3063.96,0.00019452,2]
[338422755,1726627860842,-531.64,0.00019452,2]
[338422756,1726627860852,-500.0,0.00019452,2]
[338422757,1726627860863,-500.0,0.00019452,2]
[338422758,1726627860873,-1932.82,0.00019452,2]
[338422759,1726627860884,-660.99,0.00019452,2]
[338422760,1726627861066,-500.0,0.00019452,2]
[338422761,1726627861076,-151.0,0.00019452,2]
[338422762,1726627861086,-151.0,0.00019452,2]
[338422763,1726627861097,-151.0,0.00019452,2]
[338422764,1726627861108,-151.0,0.00019452,2]
[338422765,1726627861120,-500.0,0.00019452,2]
[338422766,1726627861130,-1562.59,0.00019452,2]
[338422767,1726627861140,-1122.02,0.00019452,2]
[338422768,1726627861150,-1101.76,0.00019452,2]
[338422769,1726627861160,-151.0,0.00019452,2]
[338422770,1726627861170,-151.0,0.00019452,2]
[338422771,1726627861180,-1551.6,0.00019452,2]
[338422772,1726627861191,-500.0,0.00019452,2]
[338422773,1726627861202,-567.99274267,0.00019452,2]
[338422774,1726627861214,-500.0,0.00019452,2]
[338422775,1726627861224,-702.05,0.00019452,2]
[338422776,1726627861234,-500.0,0.00019452,2]
[338422777,1726627861244,-151.0,0.00019452,2]
[338422778,1726627861255,-1195.45,0.00019452,2]
[338422779,1726627861265,-151.0,0.00019452,2]
[338422780,1726627861275,-500.0,0.00019452,2]
[338422781,1726627861285,-500.0,0.00019452,2]
[338422782,1726627861294,-500.0,0.00019452,2]
[338422783,1726627861304,-4112.27,0.00019452,2]
[338422784,1726627861312,-500.0,0.00019452,2]
[338422785,1726627861321,-500.0,0.00019452,2]
[338422786,1726627861331,-1314.78,0.00019452,2]
[338422787,1726627861340,-151.0,0.00019452,2]
[338422788,1726627861349,-500.0,0.00019452,2]
[338422789,1726627861358,-151.0,0.00019452,2]
[338422790,1726627861367,-735.96,0.00019452,2]
[338422791,1726627861376,-1076.18,0.00019452,2]
[338422792,1726627861385,-980.32,0.00019452,2]
[338422793,1726627861395,-500.0,0.00019452,2]
[338422794,1726627861403,-500.0,0.00019452,2]
[338422795,1726627861413,-500.0,0.00019452,2]
[338422796,1726627861422,-2968.88,0.00019452,2]
[338422797,1726627861431,-500.0,0.00019452,2]
[338422798,1726627861440,-583.91,0.00019452,2]
[338422799,1726627861449,-5397.41,0.00019452,2]
[338422800,1726627861462,-963.7,0.00019452,2]
[338422801,1726627861471,-500.0,0.00019452,2]
[338422802,1726627861481,-500.0,0.00019452,2]
[338422803,1726627861491,-500.0,0.00019452,2]
[338422804,1726627861502,-1157.39,0.00019452,2]
[338422805,1726627861511,-500.0,0.00019452,2]
[338422806,1726627861520,-517.01,0.00019452,2]
[338422807,1726627861530,-170.753005,0.00019452,2]
[338422808,1726627861551,-500.0,0.00019452,2]
[338422809,1726627861569,-170.753005,0.00019452,2]
[338422810,1726627861587,-862.87,0.00019452,2]
[338422811,1726627861597,-596.41,0.00019452,2]
[338422812,1726627861607,-500.0,0.00019452,2]
[338422813,1726627861618,-500.0,0.00019452,2]
[338422814,1726627861629,-1071.84,0.00019452,2]
[338422815,1726627861641,-1641.88,0.00019452,2]
[338422816,1726627861652,-170.753005,0.00019452,2]
[338422817,1726627861663,-170.753005,0.00019452,2]
[338422818,1726627861673,-500.0,0.00019452,2]
[338422819,1726627861683,-4417.11,0.00019452,2]
[338422820,1726627861695,-500.0,0.00019452,2]
[338422821,1726627861706,-500.0,0.00019452,2]
[338422822,1726627861716,-500.0,0.00019452,2]
[338422823,1726627861728,-500.0,0.00019452,2]
[338422824,1726627861738,-533.73269536,0.00019452,2]
[338422825,1726627861749,-586.28,0.00019452,2]
[338422826,1726627861760,-796.92,0.00019452,2]
[338422827,1726627861769,-1184.82,0.00019452,2]
[338422828,1726627861780,-809.9,0.00019452,2]
[338422829,1726627861789,-190.775145,0.00019452,2]
[338422830,1726627861801,-836.44,0.00019452,2]
[338422831,1726627861813,-1025.07,0.00019452,2]
[338422832,1726627861824,-190.775145,0.00019452,2]
[338422833,1726627861835,-1078.39,0.00019452,2]
[338422834,1726627861846,-3675.2,0.00019452,2]
[338422835,1726627861857,-190.775145,0.00019452,2]
[338422836,1726627861869,-190.775145,0.00019452,2]
[338422837,1726627861880,-538.32,0.00019452,2]
[338422838,1726627861891,-9910.06,0.00019452,2]
[338422839,1726627861902,-1491.66,0.00019452,2]
[338422840,1726627861911,-4640.5,0.00019452,2]
[338422841,1726627861922,-509.73,0.00019452,2]
[338422842,1726627861932,-500.0,0.00019452,2]
[338422843,1726627861943,-738.0,0.00019452,2]
[338422844,1726627861954,-500.0,0.00019452,2]
[338422845,1726627861965,-792.61,0.00019452,2]
[338422846,1726627861981,-500.0,0.00019452,2]
[338422847,1726627862001,-500.0,0.00019452,2]
[338422848,1726627862021,-1580.18,0.00019452,2]
[338422849,1726627862031,-681.7,0.00019452,2]
[338422850,1726627862040,-297.48112711,0.00019452,2]
[338422851,1726627862049,-2015.36,0.00019452,2]
[338422852,1726627862058,-500.0,0.00019452,2]
[338422853,1726627862067,-500.0,0.00019452,2]
[338422854,1726627862078,-3814.44,0.00019452,2]
[338422855,1726627862090,-500.0,0.00019452,2]
[338422856,1726627862101,-1397.19,0.00019452,2]
[338422857,1726627862113,-500.0,0.00019452,2]
[338422858,1726627862123,-500.0,0.00019452,2]
[338422859,1726627862136,-1693.76,0.00019452,2]
[338422860,1726627862147,-500.0,0.00019452,2]
[338422861,1726627862156,-771.32,0.00019452,2]
[338422862,1726627862168,-833.78,0.00019452,2]
[338422863,1726627862178,-500.0,0.00019452,2]
[338422864,1726627862188,-832.5,0.00019452,2]
[338422865,1726627862199,-500.0,0.00019452,2]
[338422866,1726627862208,-500.0,0.00019452,2]
[338422867,1726627862218,-1897.23,0.00019452,2]
[338422868,1726627862227,-2238.04,0.00019452,2]
[338422869,1726627862236,-500.0,0.00019452,2]
[338422870,1726627862245,-500.0,0.00019452,2]
[338422871,1726627862255,-2050.63,0.00019452,2]
[338422872,1726627862264,-500.0,0.00019452,2]
[338422873,1726627862274,-1060.49,0.00019452,2]
[338422874,1726627862284,-2202.2,0.00019452,2]
[338422875,1726627862293,-500.0,0.00019452,2]
[338422876,1726627862303,-869.6,0.00019452,2]
[338422877,1726627862311,-500.0,0.00019452,2]
[338422878,1726627862321,-500.0,0.00019452,2]
[338422879,1726627862330,-1018.07,0.00019452,2]
[338422880,1726627862339,-501.45548129,0.00019452,2]
[338422881,1726627862348,-2120.87,0.00019452,2]
[338422882,1726627862357,-1284.25,0.00019452,2]
[338422883,1726627862366,-1361.52,0.00019452,2]
[338422884,1726627862375,-633.59,0.00019452,2]
[338422885,1726627862384,-501.19218989,0.00019452,2]
[338422886,1726627862394,-500.0,0.00019452,2]
[338422887,1726627862403,-1081.56,0.00019452,2]
[338422888,1726627862411,-500.0,0.00019452,2]
[338422889,1726627862421,-500.0,0.00019452,2]
[338422890,1726627862430,-577.62,0.00019452,2]
[338422891,1726627862439,-500.0,0.00019452,2]
[338422892,1726627862448,-500.0,0.00019452,2]
[338422893,1726627862460,-2148.31,0.00019452,2]
[338422894,1726627862469,-86345.18,0.00019452,2]
[338422895,1726627862478,-500.0,0.00019452,2]
[338422896,1726627862488,-500.0,0.00019452,2]
[338422897,1726627862497,-4074.87,0.00019452,2]
[338422898,1726627862506,-500.0,0.00019452,2]
[338422899,1726627862515,-151.0,0.00019452,2]
[338422900,1726627862524,-151.0,0.00019452,2]
[338422901,1726627862535,-500.0,0.00019452,2]
[338422902,1726627862544,-1423.2,0.00019452,2]
[338422903,1726627862553,-500.0,0.00019452,2]
[338422904,1726627862563,-1166.11,0.00019452,2]
[338422905,1726627862573,-1889.66,0.00019452,2]
[338422906,1726627862582,-151.0,0.00019452,2]
[338422907,1726627862592,-151.0,0.00019452,2]
[338422908,1726627862601,-500.0,0.00019452,2]
[338422909,1726627862610,-500.0,0.00019452,2]
[338422910,1726627862619,-1871.85,0.00019452,2]
[338422911,1726627862629,-500.0,0.00019452,2]
[338422912,1726627862639,-500.0,0.00019452,2]
[338422913,1726627862649,-623.08793146,0.00019452,2]
[338422914,1726627862658,-500.0,0.00019452,2]
[338422915,1726627862667,-1649.47,0.00019452,2]
[338422916,1726627862676,-1518.25,0.00019452,2]
[338422917,1726627862686,-924.51,0.00019452,2]
[338422918,1726627862695,-500.0,0.00019452,2]
[338422919,1726627862704,-500.0,0.00019452,2]
[338422920,1726627862714,-500.0,0.00019452,2]
[338422921,1726627862723,-500.0,0.00019452,2]
[338422922,1726627862733,-500.0,0.00019452,2]
[338422923,1726627862742,-500.0,0.00019452,2]
[338422924,1726627862751,-1050.24,0.00019452,2]
[338422925,1726627862760,-574.46,0.00019452,2]
[338422926,1726627862768,-1122.64,0.00019452,2]
[338422927,1726627862778,-927.92,0.00019452,2]
[338422928,1726627862788,-10328.85,0.00019452,2]
[338422929,1726627862797,-1046.25,0.00019452,2]
[338422930,1726627862807,-500.0,0.00019452,2]
[338422931,1726627862816,-500.0,0.00019452,2]
[338422932,1726627862826,-1136.96,0.00019452,2]
[338422933,1726627862835,-500.0,0.00019452,2]
[338422934,1726627862845,-500.0,0.00019452,2]
[338422935,1726627862854,-681.31,0.00019452,2]
[338422936,1726627862863,-500.0,0.00019452,2]
[338422937,1726627862872,-1129.37,0.00019452,2]
[338422938,1726627862881,-500.0,0.00019452,2]
[338422939,1726627862891,-500.0,0.00019452,2]
[338422940,1726627862900,-538.42,0.00019452,2]
[338422941,1726627862909,-500.0,0.00019452,2]
[338422942,1726627862918,-3466.07,0.00019452,2]
[338422943,1726627862927,-948.71,0.00019452,2]
[338422944,1726627862936,-500.0,0.00019452,2]
[338422945,1726627862945,-2584.67,0.00019452,2]
[338422946,1726627862954,-500.0,0.00019452,2]
[338422947,1726627862964,-841.66,0.00019452,2]
[338422948,1726627862973,-2601.74,0.00019452,2]
[338422949,1726627862982,-500.0,0.00019452,2]
[338422950,1726627862991,-500.0,0.00019452,2]
[338422951,1726627863001,-500.0,0.00019452,2]
[338422952,1726627863011,-502.63285672,0.00019452,2]
[338422953,1726627863021,-500.0,0.00019452,2]
[338422954,1726627863031,-612.18,0.00019452,2]
[338422955,1726627863041,-500.0,0.00019452,2]
[338422956,1726627863050,-1230.247605,0.00019452,2]
[338422957,1726627863059,-1230.247605,0.00019452,2]
[338422958,1726627863068,-500.0,0.00019452,2]
[338422959,1726627863078,-500.0,0.00019452,2]
[338422960,1726627863087,-2102.86,0.00019452,2]
[338422961,1726627863097,-247.6,0.00019452,2]
[338422962,1726627863106,-599.2,0.00019452,2]
[338422963,1726627863115,-1468.76,0.00019452,2]
[338422964,1726627863124,-1230.247605,0.00019452,2]
[338422965,1726627863134,-1230.247605,0.00019452,2]
[338422966,1726627863144,-1310.01,0.00019452,2]
[338422967,1726627863153,-1288.95,0.00019452,2]
[338422968,1726627863163,-588.31,0.00019452,2]
[338422969,1726627863172,-500.0,0.00019452,2]
[338422970,1726627863181,-554.46,0.00019452,2]
[338422971,1726627863192,-563.08978909,0.00019452,2]
[338422972,1726627863201,-500.0,0.00019452,2]
[338422973,1726627863211,-500.0,0.00019452,2]
[338422974,1726627863220,-1196.15,0.00019452,2]
[338422975,1726627863231,-1295.28,0.00019452,2]
[338422976,1726627863369,-1106.83,0.00019452,2]
[338422977,1726627863380,-1175.48,0.00019452,2]
[338422978,1726627863391,-762.0,0.00019452,2]
[338422979,1726627863400,-500.0,0.00019452,2]
[338422980,1726627863411,-500.0,0.00019452,2]
[338422981,1726627863422,-587.57,0.00019452,2]
[338422982,1726627863432,-1896.9,0.00019452,2]
[338422983,1726627863442,-1030.22,0.00019452,2]
[338422984,1726627863454,-500.0,0.00019452,2]
[338422985,1726627863471,-500.0,0.00019452,2]
[338422986,1726627863481,-964.49,0.00019452,2]
[338422987,1726627863490,-1001.69,0.00019452,2]
[338422988,1726627863499,-3330.76,0.00019452,2]
[338422989,1726627863510,-500.0,0.00019452,2]
[338422990,1726627863520,-646.33865991,0.00019452,2]
[338422991,1726627863530,-500.0,0.00019452,2]
[338422992,1726627863539,-500.0,0.00019452,2]
[338422993,1726627863550,-567.17,0.00019452,2]
[338422994,1726627863560,-515.34,0.00019452,2]
[338422995,1726627863569,-500.0,0.00019452,2]
[338422996,1726627863580,-553.81802757,0.00019473,2]
[338422997,1726627863590,-500.0,0.00019473,2]
[338422998,1726627863600,-500.0,0.00019473,2]
[338422999,1726627863609,-1230.247605,0.00019473,2]
[338423000,1726627863618,-1230.247605,0.00019473,2]
[338423001,1726627863628,-2206.03,0.00019725,2]
[338423002,1726627863639,-2206.03,0.00019725,2]
[338423003,1726627863649,-2206.03,0.00019725,2]
[338423004,1726627863659,-500.0,0.00019726,2]
[338423005,1726627863669,-500.0,0.00019726,2]
[338423006,1726627863679,-500.0,0.00019726,2]
[338423007,1726627863690,-500.0,0.00019726,2]
[338423008,1726627863701,-152.209474,0.00019726,2]
[338423009,1726627863710,-563.84575224,0.00019726,2]
[338423010,1726627863720,-607.55,0.00019726,2]
[338423011,1726627863731,-500.0,0.00019726,2]
[338423012,1726627863742,-1770.19,0.00019726,2]
[338423013,1726627863753,-500.0,0.00019726,2]
[338423014,1726627863763,-1147.85,0.00019726,2]
[338423015,1726627863772,-500.0,0.00019726,2]
[338423016,1726627863782,-500.0,0.00019726,2]
[338423017,1726627863792,-500.0,0.00019726,2]
[338423018,1726627863802,-500.0,0.00019726,2]
[338423019,1726627863813,-500.0,0.00019726,2]
[338423020,1726627863822,-500.0,0.00019726,2]
[338423021,1726627863833,-500.0,0.00019726,2]
[338423022,1726627863844,-151.0,0.00019726,2]
[338423023,1726627863854,-727.55,0.00019726,2]
[338423024,1726627863865,-500.0,0.00019726,2]
[338423025,1726627863874,-750.01,0.00019726,2]
[338423026,1726627863883,-500.0,0.00019726,2]
[338423027,1726627863893,-500.0,0.00019726,2]
[338423028,1726627863903,-500.0,0.00019726,2]
[338423029,1726627863912,-500.0,0.00019726,2]
[338423030,1726627863922,-500.0,0.00019726,2]
[338423031,1726627863931,-500.0,0.00019726,2]
[338423032,1726627863941,-500.0,0.00019726,2]
[338423033,1726627863951,-611.6,0.00019726,2]
[338423034,1726627863960,-500.0,0.00019726,2]
[338423035,1726627863970,-500.0,0.00019726,2]
[338423036,1726627863980,-500.0,0.00019726,2]
[338423037,1726627863990,-500.0,0.00019726,2]
[338423038,1726627864001,-500.0,0.00019726,2]
[338423039,1726627864011,-500.0,0.00019726,2]
[338423040,1726627864021,-500.0,0.00019726,2]
[338423041,1726627864032,-747.39,0.00019726,2]
[338423042,1726627864042,-805.97,0.00019726,2]
[338423043,1726627864052,-500.0,0.00019726,2]
[338423044,1726627864064,-500.0,0.00019726,2]
[338423045,1726627864073,-500.0,0.00019726,2]
[338423046,1726627864083,-500.72,0.00019726,2]
[338423047,1726627864093,-500.0,0.00019726,2]
[338423048,1726627864106,-500.71126635,0.00019726,2]
[338423049,1726627864115,-500.0,0.00019726,2]
[338423050,1726627864125,-500.0,0.00019726,2]
[338423051,1726627864136,-500.60371159,0.00019726,2]
[338423052,1726627864146,-1086.64,0.00019726,2]
[338423053,1726627864155,-151.0,0.00019726,2]
[338423054,1726627864165,-500.0,0.00019726,2]
[338423055,1726627864175,-500.0,0.00019726,2]
[338423056,1726627864186,-500.0,0.00019726,2]
[338423057,1726627864195,-500.0,0.00019726,2]
[338423058,1726627864204,-151.0,0.00019726,2]
[338423059,1726627864213,-1064.58,0.00019726,2]
[338423060,1726627864222,-500.0,0.00019726,2]
[338423061,1726627864232,-500.0,0.00019726,2]